fUSD/lending_fUSD_20250617
["ID","MTS","AMOUNT","RATE_DAILY","PERIOD"]
[366270892,1750169457155,-590.84,0.00016438,2]
[366270894,1750169457165,-490.0,0.00016438,2]
[366270896,1750169457175,-490.0,0.00016438,2]
[366270898,1750169457185,-1223.58,0.00016438,2]
[366270900,1750169457195,-545.58,0.00016438,2]
[366270902,1750169457205,-490.0,0.00016438,2]
[366270904,1750169457218,-490.0,0.00016438,2]
[366270906,1750169457232,-490.0,0.00016438,2]
[366270908,1750169457243,-490.0,0.00016438,2]
[366270910,1750169457253,-490.0,0.00016438,2]
[366270912,1750169457263,-327.54407113,0.00016438,2]
[366270914,1750169457273,-469.75359455,0.00016438,2]
[366270916,1750169457283,-927.42,0.00016438,2]
[366270918,1750169457293,-1570.87,0.00016438,2]
[366270920,1750169457303,-490.0,0.00016438,2]
[366270922,1750169457313,-490.0,0.00016438,2]
[366270924,1750169457323,-1231.47,0.00016438,2]
[366270926,1750169457334,-490.0,0.00016438,2]
[366270928,1750169457344,-490.0,0.00016438,2]
[366270930,1750169457354,-490.0,0.00016438,2]
[366270932,1750169457363,-1264.7,0.00016438,2]
[366270934,1750169457373,-8736.9,0.00016438,2]
[366270936,1750169457383,-151.0,0.00016438,2]
[366270938,1750169457392,-151.0,0.00016438,2]
[366270940,1750169457402,-151.0,0.00016438,2]
[366270942,1750169457412,-813.77,0.00016438,2]
[366270944,1750169457422,-966.84,0.00016438,2]
[366270946,1750169457432,-625.89,0.00016438,2]
[366270948,1750169457442,-490.0,0.00016438,2]
[366270949,1750169457452,-758.27,0.00016438,2]
[366270951,1750169457462,-490.0,0.00016438,2]
[366270954,1750169457472,-2047.21,0.00016438,2]
[366270955,1750169457483,-490.0,0.00016438,2]
[366270957,1750169457492,-490.0,0.00016438,2]
[366270960,1750169457502,-490.0,0.00016438,2]
[366270961,1750169457513,-490.0,0.00016438,2]
[366270963,1750169457524,-2947.82,0.00016438,2]
[366270965,1750169457534,-490.0,0.00016438,2]
[366270967,1750169457543,-1525.48,0.00016438,2]
[366270969,1750169457553,-490.0,0.00016438,2]
[366270971,1750169457564,-490.0,0.00016438,2]
[366270974,1750169457574,-1074.44,0.00016438,2]
[366270976,1750169457584,-490.0,0.00016438,2]
[366270977,1750169457594,-490.0,0.00016438,2]
[366270978,1750169457604,-3642.81,0.00016438,2]
[366270980,1750169457614,-8663.18,0.00016438,2]
[366270982,1750169457624,-490.0,0.00016438,2]
[366270984,1750169457635,-220.20194575,0.00016438,2]
[366270986,1750169457644,-696.52,0.00016438,2]
[366270988,1750169457654,-5926.26,0.00016438,2]
[366270990,1750169457665,-490.0,0.00016438,2]
[366270992,1750169457675,-1425.96,0.00016438,2]
[366270994,1750169457686,-490.0,0.00016438,2]
[366270996,1750169457695,-490.0,0.00016438,2]
[366270997,1750169457705,-2419.69,0.00016438,2]
[366270999,1750169457716,-490.0,0.00016438,2]
[366271001,1750169457726,-520.08,0.00016438,2]
[366271003,1750169457736,-490.0,0.00016438,2]
[366271005,1750169457746,-4459.34,0.00016438,2]
[366271007,1750169457756,-1747.75,0.00016438,2]
[366271009,1750169457768,-490.0,0.00016438,2]
[366271011,1750169457778,-391.508113,0.00016438,2]
[366271013,1750169457788,-1127.42,0.00016438,2]
[366271015,1750169457798,-391.508113,0.00016438,2]
[366271017,1750169457809,-490.0,0.00016438,2]
[366271019,1750169457818,-490.0,0.00016438,2]
[366271021,1750169457828,-815.17,0.00016438,2]
[366271023,1750169457838,-490.0,0.00016438,2]
[366271025,1750169457848,-391.508113,0.00016438,2]
[366271027,1750169457858,-806.88,0.00016438,2]
[366271029,1750169457868,-490.0,0.00016438,2]
[366271031,1750169457878,-391.508113,0.00016438,2]
[366271033,1750169457888,-1085.45,0.00016438,2]
[366271035,1750169457898,-490.0,0.00016438,2]
[366271037,1750169457908,-151.0,0.00016438,2]
[366271039,1750169457918,-151.0,0.00016438,2]
[366271041,1750169457928,-644.08,0.00016438,2]
[366271043,1750169457937,-490.0,0.00016438,2]
[366271045,1750169457948,-5297.86,0.00016438,2]
[366271047,1750169457957,-151.0,0.00016438,2]
[366271049,1750169457967,-490.0,0.00016438,2]
[366271050,1750169457977,-825.11,0.00016438,2]
[366271052,1750169457987,-490.0,0.00016438,2]
[366271054,1750169457997,-490.0,0.00016438,2]
[366271056,1750169458007,-3443.4,0.00016438,2]
[366271059,1750169458018,-490.0,0.00016438,2]
[366271060,1750169458029,-324.96849553,0.00016438,2]
[366271062,1750169458039,-490.0,0.00016438,2]
[366271064,1750169458048,-490.0,0.00016438,2]
[366271066,1750169458058,-490.0,0.00016438,2]
[366271068,1750169458072,-1023.68,0.00016438,2]
[366271070,1750169458082,-490.0,0.00016438,2]
[366271072,1750169458091,-5709.92,0.00016438,2]
[366271074,1750169458101,-609.59,0.00016438,2]
[366271076,1750169458112,-490.0,0.00016438,2]
[366271078,1750169458122,-1484.66,0.00016438,2]
[366271080,1750169458131,-490.0,0.00016438,2]
[366271082,1750169458141,-551.99,0.00016438,2]
[366271084,1750169458151,-3331.3,0.00016438,2]
[366271086,1750169458161,-490.0,0.00016438,2]
[366271088,1750169458171,-1762.34,0.00016438,2]
[366271090,1750169458180,-750.4,0.00016438,2]
[366271092,1750169458191,-490.0,0.00016438,2]
[366271094,1750169458201,-490.0,0.00016438,2]
[366271096,1750169458213,-490.0,0.00016438,2]
[366271098,1750169458224,-490.0,0.00016438,2]
[366271100,1750169458234,-490.0,0.00016438,2]
[366271102,1750169458243,-490.0,0.00016438,2]
[366271104,1750169458253,-490.0,0.00016438,2]
[366271105,1750169458263,-490.0,0.00016438,2]
[366271107,1750169458273,-490.0,0.00016438,2]
[366271109,1750169458283,-490.0,0.00016438,2]
[366271111,1750169458292,-490.0,0.00016438,2]
[366271113,1750169458304,-2626.07,0.00016438,2]
[366271115,1750169458314,-1162.38,0.00016438,2]
[366271117,1750169458324,-490.0,0.00016438,2]
[366271131,1750169458450,-490.0,0.00016438,2]
[366271133,1750169458460,-490.0,0.00016438,2]
[366271135,1750169458470,-490.0,0.00016438,2]
[366271137,1750169458480,-490.0,0.00016438,2]
[366271139,1750169458489,-10742.19,0.00016438,2]
[366271140,1750169458499,-1426.76,0.00016438,2]
[366271142,1750169458509,-500.0,0.00016438,2]
[366271144,1750169458519,-500.0,0.00016438,2]
[366271146,1750169458529,-2299.22,0.00016438,2]
[366271148,1750169458539,-490.0,0.00016438,2]
[366271150,1750169458549,-500.0,0.00016438,2]
[366271152,1750169458559,-500.0,0.00016438,2]
[366271154,1750169458569,-500.0,0.00016438,2]
[366271156,1750169458578,-397.3,0.00016438,2]
[366271158,1750169458588,-655.73,0.00016438,2]
[366271160,1750169458598,-490.0,0.00016438,2]
[366271162,1750169458608,-490.0,0.00016438,2]
[366271164,1750169458618,-1677.68,0.00016438,2]
[366271166,1750169458628,-925.77,0.00016438,2]
[366271168,1750169458638,-500.0,0.00016438,2]
[366271170,1750169458648,-490.0,0.00016438,2]
[366271172,1750169458658,-570.18,0.00016438,2]
[366271174,1750169458668,-508.79581704,0.00016438,2]
[366271176,1750169458678,-582.40741698,0.00016438,2]
[366271178,1750169458688,-2184.6,0.00016438,2]
[366271180,1750169458698,-942.35,0.00016438,2]
[366271182,1750169458708,-490.0,0.00016438,2]
[366271184,1750169458731,-1517.231816,0.00016438,2]
[366271186,1750169458753,-157.599273,0.00016438,2]
[366271189,1750169458788,-490.0,0.00016438,2]
[366271191,1750169458814,-490.0,0.00016438,2]
[366271193,1750169458837,-750.16,0.00016438,2]
[366271195,1750169458860,-490.0,0.00016438,2]
[366271197,1750169458884,-490.0,0.00016438,2]
[366271199,1750169458907,-490.0,0.00016438,2]
[366271201,1750169458930,-4073.7,0.00016438,2]
[366271203,1750169458953,-3925.62,0.00016438,2]
[366271205,1750169458976,-427.16042913,0.00016438,2]
[366271207,1750169458999,-631.31,0.00016438,2]
[366271209,1750169459019,-605.5,0.00016438,2]
[366271211,1750169459030,-717.74,0.00016438,2]
[366271213,1750169459041,-490.0,0.00016438,2]
[366271215,1750169459052,-160.710687,0.00016438,2]
[366271217,1750169459063,-786.49,0.00016438,2]
[366271219,1750169459073,-441.39234562,0.00016438,2]
[366271221,1750169459084,-490.0,0.00016438,2]
[366271224,1750169459095,-490.0,0.00016438,2]
[366271226,1750169459106,-468.39842372,0.00016438,2]
[366271228,1750169459117,-490.0,0.00016438,2]
[366271230,1750169459127,-490.0,0.00016438,2]
[366271232,1750169459139,-2905.71,0.00016438,2]
[366271234,1750169459149,-1092.69,0.00016438,2]
[366271236,1750169459160,-490.0,0.00016438,2]
[366271238,1750169459170,-464.2626682,0.00016438,2]
[366271240,1750169459181,-159.03,0.00016438,2]
[366271242,1750169459192,-300.0,0.00016438,2]
[366271244,1750169459203,-353.33789906,0.00016457,2]
[366271245,1750169459214,-3794.339031,0.00016458,2]
[366271246,1750169459228,-500.0,0.00016473,2]
[366271247,1750169459239,-593.63922972,0.0001649,2]
[366271248,1750169459250,-150.0,0.00016497,2]
[366271249,1750169459261,-3794.339031,0.00016499,2]
[366271250,1750169459272,-22112.77,0.000165,2]
[366271251,1750169459282,-312.43943744,0.00016502,2]
[366271252,1750169459294,-150.0,0.00016536,2]
[366271253,1750169459305,-150.0,0.00016549,2]
[366271254,1750169459316,-150.0,0.00016562,2]
[366271256,1750169459332,-4957.27065414,0.0001659,2]
[366271258,1750169459343,-150.0,0.00016598,2]
[366271260,1750169459356,-3794.339031,0.00016599,2]
[366271263,1750169459367,-528.0,0.000166,3]
[366271265,1750169459379,-1000.0,0.000166,2]
[366271267,1750169459390,-1000.0,0.000166,2]
[366271269,1750169459401,-1000.0,0.000166,3]
[366271271,1750169459412,-1000.0,0.000166,2]
[366271273,1750169459423,-1000.0,0.000166,2]
[366271275,1750169459433,-581.3,0.000166,2]
[366271277,1750169459445,-376.0,0.000166,2]
[366271280,1750169459456,-769.0,0.000166,2]
[366271282,1750169459469,-151.888211,0.00016602,2]
[366271284,1750169459480,-151.0,0.00016602,2]
[366271286,1750169459491,-151.0,0.00016602,2]
[366271288,1750169459502,-151.0,0.00016602,2]
[366271290,1750169459514,-151.0,0.00016602,2]
[366271293,1750169459525,-151.0,0.00016602,2]
[366271295,1750169459536,-151.605583,0.00016602,2]
[366271297,1750169459547,-151.0,0.00016602,2]
[366271299,1750169459557,-151.0,0.00016602,2]
[366271301,1750169459568,-151.0,0.00016602,2]
[366271303,1750169459579,-490.0,0.00016602,2]
[366271305,1750169459590,-490.0,0.00016602,2]
[366271307,1750169459601,-490.0,0.00016602,2]
[366271310,1750169459612,-420.61907005,0.00016602,2]
[366271312,1750169459623,-332.83199522,0.00016602,2]
[366271314,1750169459633,-460.0,0.00016602,2]
[366271316,1750169459644,-151.0,0.00016602,2]
[366271318,1750169459654,-151.0,0.00016602,2]
[366271320,1750169459665,-490.0,0.00016602,2]
[366271322,1750169459675,-171.296575,0.00016602,2]
[366271324,1750169459686,-490.0,0.00016602,2]
[366271327,1750169459697,-151.0,0.00016602,2]
[366271329,1750169459706,-171.296575,0.00016602,2]
[366271331,1750169459716,-151.0,0.00016602,2]
[366271333,1750169459727,-151.0,0.00016602,2]
[366271335,1750169459737,-490.0,0.00016602,2]
[366271337,1750169459747,-490.0,0.00016602,2]
[366271340,1750169459764,-490.0,0.00016602,2]
[366271342,1750169459775,-240.0,0.00016602,2]
[366271344,1750169459785,-490.0,0.00016602,2]
[366271346,1750169459797,-490.0,0.00016602,2]
[366271348,1750169459808,-490.0,0.00016602,2]
[366271350,1750169459818,-490.0,0.00016602,2]
[366271352,1750169459829,-490.0,0.00016602,2]
[366271353,1750169459840,-490.0,0.00016602,2]
[366271356,1750169459850,-490.0,0.00016602,2]
[366271358,1750169459861,-528.86,0.00016602,2]
[366271360,1750169459872,-490.0,0.00016602,2]
[366271362,1750169459883,-490.0,0.00016602,2]
[366271364,1750169459894,-490.0,0.00016602,2]
[366271366,1750169459905,-490.0,0.00016602,2]
[366271368,1750169459916,-490.0,0.00016602,2]
[366271370,1750169459926,-490.0,0.00016602,2]
[366271372,1750169459937,-490.0,0.00016602,2]
[366271374,1750169459948,-490.0,0.00016602,2]
[366271376,1750169459959,-490.0,0.00016602,2]
[366271378,1750169459970,-490.0,0.00016602,2]
[366271380,1750169459981,-490.0,0.00016602,2]
[366271382,1750169459991,-490.0,0.00016602,2]
[366271384,1750169460002,-490.0,0.00016602,2]
[366271386,1750169460013,-490.0,0.00016602,2]
[366271388,1750169460023,-490.0,0.00016602,2]
[366271390,1750169460034,-490.0,0.00016602,2]
[366271392,1750169460046,-617.37046392,0.00016602,2]
[366271394,1750169460057,-490.0,0.00016602,2]
[366271397,1750169460068,-490.0,0.00016602,2]
[366271399,1750169460079,-490.0,0.00016602,2]
[366271401,1750169460090,-490.0,0.00016602,2]
[366271402,1750169460101,-490.0,0.00016602,2]
[366271403,1750169460112,-490.0,0.00016602,2]
[366271405,1750169460123,-490.0,0.00016602,2]
[366271407,1750169460134,-769.18,0.00016602,2]
[366271409,1750169460145,-490.0,0.00016602,2]
[366271411,1750169460155,-490.0,0.00016602,2]
[366271412,1750169460166,-490.0,0.00016602,2]
[366271413,1750169460177,-490.0,0.00016602,2]
[366271414,1750169460195,-490.0,0.00016602,2]
[366271415,1750169460206,-490.0,0.00016602,2]
[366271416,1750169460220,-490.0,0.00016602,2]
[366271417,1750169460231,-490.0,0.00016602,2]
[366271418,1750169460242,-490.0,0.00016602,2]
[366271419,1750169460253,-490.0,0.00016602,2]
[366271420,1750169460267,-490.0,0.00016602,2]
[366271421,1750169460277,-490.0,0.00016602,2]
[366271422,1750169460289,-573.35,0.00016602,2]
[366271423,1750169460301,-490.0,0.00016602,2]
[366271424,1750169460312,-490.0,0.00016602,2]
[366271425,1750169460323,-490.0,0.00016602,2]
[366271426,1750169460335,-490.0,0.00016602,2]
[366271427,1750169460346,-490.0,0.00016602,2]
[366271428,1750169460358,-490.0,0.00016602,2]
[366271429,1750169460369,-490.0,0.00016602,2]
[366271430,1750169460380,-490.0,0.00016602,2]
[366271431,1750169460391,-490.0,0.00016602,2]
[366271432,1750169460402,-490.0,0.00016602,2]
[366271433,1750169460413,-490.0,0.00016602,2]
[366271434,1750169460424,-490.0,0.00016602,2]
[366271435,1750169460435,-490.0,0.00016602,2]
[366271436,1750169460446,-490.0,0.00016602,2]
[366271437,1750169460457,-490.0,0.00016602,2]
[366271438,1750169460468,-490.0,0.00016602,2]
[366271439,1750169460479,-490.0,0.00016602,2]
[366271440,1750169460491,-490.0,0.00016602,2]
[366271441,1750169460502,-724.27,0.00016602,2]
[366271442,1750169460516,-514.9013825,0.00016602,2]
[366271443,1750169460527,-490.0,0.00016602,2]
[366271444,1750169460538,-490.0,0.00016602,2]
[366271445,1750169460549,-490.0,0.00016602,2]
[366271446,1750169460560,-665.44,0.00016602,2]
[366271447,1750169460571,-490.0,0.00016602,2]
[366271448,1750169460582,-490.0,0.00016602,2]
[366271449,1750169460593,-1146.38,0.00016602,2]
[366271450,1750169460605,-490.0,0.00016602,2]
[366271451,1750169460617,-151.0,0.00016602,2]
[366271452,1750169460627,-151.0,0.00016602,2]
[366271454,1750169460638,-490.0,0.00016602,2]
[366271457,1750169460649,-614.51602499,0.00016602,2]
[366271459,1750169460660,-490.0,0.00016602,2]
[366271461,1750169460671,-490.0,0.00016602,2]
[366271463,1750169460682,-490.0,0.00016602,2]
[366271465,1750169460693,-490.0,0.00016602,2]
[366271467,1750169460703,-153.068112,0.00016602,2]
[366271469,1750169460714,-490.0,0.00016602,2]
[366271471,1750169460725,-151.0,0.00016602,2]
[366271473,1750169460736,-151.0,0.00016602,2]
[366271475,1750169460747,-490.0,0.00016602,2]
[366271477,1750169460758,-490.0,0.00016602,2]
[366271480,1750169460770,-490.0,0.00016602,2]
[366271481,1750169460781,-490.0,0.00016602,2]
[366271484,1750169460792,-901.84,0.00016602,2]
[366271486,1750169460803,-490.0,0.00016602,2]
[366271488,1750169460814,-490.0,0.00016602,2]
[366271490,1750169460824,-490.0,0.00016602,2]
[366271492,1750169460834,-490.0,0.00016602,2]
[366271494,1750169460845,-491.40294096,0.00016602,2]
[366271496,1750169460855,-490.0,0.00016602,2]
[366271498,1750169460865,-490.0,0.00016602,2]
[366271500,1750169460876,-490.0,0.00016602,2]
[366271502,1750169460887,-490.0,0.00016602,2]
[366271504,1750169460897,-490.0,0.00016602,2]
[366271506,1750169460908,-490.0,0.00016602,2]
[366271508,1750169460919,-490.0,0.00016602,2]
[366271510,1750169460929,-490.0,0.00016602,2]
[366271513,1750169460940,-490.0,0.00016602,2]
[366271515,1750169460950,-151.0,0.00016602,2]
[366271517,1750169460960,-490.0,0.00016602,2]
[366271519,1750169460971,-151.0,0.00016602,2]
[366271521,1750169460981,-490.0,0.00016602,2]
[366271523,1750169460992,-490.0,0.00016602,2]
[366271525,1750169461003,-151.0,0.00016602,2]
[366271527,1750169461016,-151.0,0.00016602,2]
[366271529,1750169461026,-151.0,0.00016602,2]
[366271531,1750169461037,-151.0,0.00016602,2]
[366271533,1750169461048,-490.0,0.00016602,2]
[366271535,1750169461058,-490.0,0.00016602,2]
[366271537,1750169461068,-151.0,0.00016602,2]
[366271539,1750169461079,-151.0,0.00016602,2]
[366271542,1750169461089,-490.0,0.00016602,2]
[366271544,1750169461100,-490.0,0.00016602,2]
[366271546,1750169461110,-490.0,0.00016602,2]
[366271548,1750169461121,-490.0,0.00016602,2]
[366271550,1750169461132,-490.0,0.00016602,2]
[366271553,1750169461154,-440.0,0.00016602,2]
[366271555,1750169461166,-493.87048298,0.00016602,2]
[366271558,1750169461178,-907.95,0.00016602,2]
[366271560,1750169461188,-490.0,0.00016602,2]
[366271562,1750169461198,-492.68608306,0.00016602,2]
[366271564,1750169461210,-424.325628,0.00016602,2]
[366271566,1750169461224,-424.325628,0.00016602,2]
[366271568,1750169461234,-490.0,0.00016602,2]
[366271570,1750169461245,-151.0,0.00016602,2]
[366271572,1750169461255,-424.325628,0.00016602,2]
[366271574,1750169461268,-161.846808,0.00016602,2]
[366271576,1750169461278,-748.02,0.00016602,2]
[366271577,1750169461288,-424.325628,0.00016602,2]
[366271578,1750169461300,-490.0,0.00016602,2]
[366271579,1750169461311,-490.0,0.00016602,2]
[366271580,1750169461322,-490.0,0.00016602,2]
[366271581,1750169461333,-490.0,0.00016602,2]
[366271582,1750169461343,-490.0,0.00016602,2]
[366271583,1750169461353,-151.0,0.00016602,2]
[366271584,1750169461363,-151.0,0.00016602,2]
[366271585,1750169461374,-151.0,0.00016602,2]
[366271586,1750169461384,-151.0,0.00016602,2]
[366271587,1750169461394,-490.0,0.00016602,2]
[366271588,1750169461404,-490.0,0.00016602,2]
[366271589,1750169461416,-490.0,0.00016602,2]
[366271590,1750169461426,-490.0,0.00016602,2]
[366271591,1750169461436,-584.74413747,0.00016602,2]
[366271592,1750169461446,-490.0,0.00016602,2]
[366271593,1750169461456,-572.91,0.00016602,2]
[366271594,1750169461467,-490.0,0.00016602,2]
[366271595,1750169461477,-559.46714059,0.00016602,2]
[366271596,1750169461488,-490.0,0.00016602,2]
[366271597,1750169461498,-490.0,0.00016602,2]
[366271598,1750169461509,-490.0,0.00016602,2]
[366271599,1750169461519,-151.0,0.00016602,2]
[366271600,1750169461530,-151.0,0.00016602,2]
[366271601,1750169461540,-490.0,0.00016602,2]
[366271602,1750169461550,-490.0,0.00016602,2]
[366271603,1750169461560,-490.0,0.00016602,2]
[366271604,1750169461570,-704.92,0.00016602,2]
[366271605,1750169461587,-490.0,0.00016602,2]
[366271606,1750169461598,-490.0,0.00016602,2]
[366271607,1750169461608,-490.0,0.00016602,2]
[366271608,1750169461618,-490.0,0.00016602,2]
[366271609,1750169461629,-490.0,0.00016602,2]
[366271610,1750169461639,-473.94657642,0.00016602,2]
[366271611,1750169461649,-764.9,0.00016602,2]
[366271612,1750169461659,-490.0,0.00016602,2]
[366271613,1750169461670,-490.0,0.00016602,2]
[366271614,1750169461680,-151.0,0.00016602,2]
[366271615,1750169461691,-559.23,0.00016602,2]
[366271616,1750169461701,-151.0,0.00016602,2]
[366271617,1750169461712,-491.61154044,0.00016602,2]
[366271618,1750169461723,-490.0,0.00016602,2]
[366271619,1750169461733,-538.54,0.00016602,2]
[366271620,1750169461744,-490.0,0.00016602,2]
[366271621,1750169461754,-490.0,0.00016602,2]
[366271622,1750169461765,-490.0,0.00016602,2]
[366271623,1750169461775,-490.0,0.00016602,2]
[366271624,1750169461786,-490.0,0.00016602,2]
[366271625,1750169461798,-490.0,0.00016602,2]
[366271626,1750169461810,-490.0,0.00016602,2]
[366271627,1750169461821,-490.0,0.00016602,2]
[366271628,1750169461830,-490.0,0.00016602,2]
[366271629,1750169461840,-490.0,0.00016602,2]
[366271630,1750169461850,-551.11,0.00016602,2]
[366271631,1750169461861,-609.35,0.00016602,2]
[366271632,1750169461871,-490.0,0.00016602,2]
[366271633,1750169461883,-490.0,0.00016602,2]
[366271634,1750169461893,-1973.58,0.00016602,2]
[366271635,1750169461903,-490.0,0.00016602,2]
[366271636,1750169461913,-491.42602028,0.00016602,2]
[366271637,1750169461924,-490.0,0.00016602,2]
[366271638,1750169461935,-490.0,0.00016602,2]
[366271639,1750169461945,-490.0,0.00016602,2]
[366271640,1750169461955,-490.0,0.00016602,2]
[366271641,1750169461965,-490.0,0.00016602,2]
[366271642,1750169461976,-490.0,0.00016602,2]
[366271643,1750169461986,-151.0,0.00016602,2]
[366271644,1750169461996,-151.0,0.00016602,2]
[366271645,1750169462006,-151.0,0.00016602,2]
[366271646,1750169462022,-543.86536815,0.00016602,2]
[366271647,1750169462032,-151.0,0.00016602,2]
[366271648,1750169462043,-791.31,0.00016602,2]
[366271649,1750169462053,-490.0,0.00016602,2]
[366271650,1750169462063,-490.0,0.00016602,2]
[366271651,1750169462072,-490.0,0.00016602,2]
[366271652,1750169462082,-490.0,0.00016602,2]
[366271653,1750169462093,-151.0,0.00016602,2]
[366271654,1750169462103,-490.0,0.00016602,2]
[366271655,1750169462113,-151.0,0.00016602,2]
[366271656,1750169462124,-490.0,0.00016602,2]
[366271657,1750169462135,-490.0,0.00016602,2]
[366271658,1750169462145,-501.65188438,0.00016602,2]
[366271659,1750169462156,-490.0,0.00016602,2]
[366271660,1750169462166,-490.0,0.00016602,2]
[366271661,1750169462176,-151.0,0.00016602,2]
[366271662,1750169462186,-151.0,0.00016602,2]
[366271663,1750169462197,-490.0,0.00016602,2]
[366271664,1750169462207,-497.13,0.00016602,2]
[366271665,1750169462220,-490.0,0.00016602,2]
[366271666,1750169462233,-690.05,0.00016602,2]
[366271667,1750169462243,-151.0,0.00016602,2]
[366271668,1750169462254,-151.0,0.00016602,2]
[366271669,1750169462263,-490.0,0.00016602,2]
[366271670,1750169462274,-491.86527888,0.00016602,2]
[366271671,1750169462284,-1190.66,0.00016602,2]
[366271672,1750169462294,-955.07,0.00016602,2]
[366271673,1750169462306,-490.0,0.00016602,2]
[366271674,1750169462317,-490.0,0.00016602,2]
[366271675,1750169462328,-490.0,0.00016602,2]
[366271676,1750169462338,-2025.59,0.00016602,2]
[366271677,1750169462348,-490.0,0.00016602,2]
[366271678,1750169462359,-490.0,0.00016602,2]
[366271679,1750169462369,-490.0,0.00016602,2]
[366271680,1750169462381,-490.0,0.00016602,2]
[366271681,1750169462391,-913.65,0.00016602,2]
[366271682,1750169462402,-151.0,0.00016602,2]
[366271683,1750169462413,-151.0,0.00016602,2]
[366271684,1750169462423,-490.0,0.00016602,2]
[366271685,1750169462434,-490.0,0.00016602,2]
[366271686,1750169462445,-490.0,0.00016602,2]
[366271687,1750169462455,-490.0,0.00016602,2]
[366271688,1750169462470,-490.0,0.00016602,2]
[366271689,1750169462480,-490.0,0.00016602,2]
[366271690,1750169462491,-490.0,0.00016602,2]
[366271691,1750169462502,-650.55,0.00016602,2]
[366271692,1750169462514,-490.0,0.00016602,2]
[366271693,1750169462526,-490.0,0.00016602,2]
[366271694,1750169462537,-490.0,0.00016602,2]
[366271695,1750169462547,-585.08,0.00016602,2]
[366271696,1750169462559,-490.0,0.00016602,2]
[366271697,1750169462570,-490.0,0.00016602,2]
[366271698,1750169462581,-490.0,0.00016602,2]
[366271699,1750169462591,-490.0,0.00016602,2]
[366271700,1750169462603,-490.0,0.00016602,2]
[366271701,1750169462613,-490.0,0.00016602,2]
[366271702,1750169462624,-490.0,0.00016602,2]
[366271703,1750169462635,-490.0,0.00016602,2]
[366271704,1750169462645,-490.0,0.00016602,2]
[366271705,1750169462656,-490.0,0.00016602,2]
[366271706,1750169462667,-490.0,0.00016602,2]
[366271707,1750169462678,-318.51543686,0.00016602,2]
[366271708,1750169462689,-490.0,0.00016602,2]
[366271709,1750169462700,-1054.04,0.00016602,2]
[366271710,1750169462711,-490.0,0.00016602,2]
[366271711,1750169462722,-490.0,0.00016602,2]
[366271712,1750169462732,-490.0,0.00016602,2]
[366271713,1750169462743,-490.0,0.00016602,2]
[366271714,1750169462754,-1021.07,0.00016602,2]
[366271715,1750169462766,-490.0,0.00016602,2]
[366271716,1750169462776,-814.23,0.00016602,2]
[366271717,1750169462787,-885.89,0.00016602,2]